fUSD/lending_fUSD_20240905
["ID","MTS","AMOUNT","RATE_DAILY","PERIOD"]
[337204616,1725499859039,-500.0,0.00014973,2]
[337204617,1725499859055,-500.0,0.00014973,2]
[337204618,1725499859065,-500.0,0.00014973,2]
[337204619,1725499859078,-500.0,0.00014973,2]
[337204620,1725499859089,-1474.41,0.00014973,2]
[337204621,1725499859102,-500.0,0.00014973,2]
[337204622,1725499859118,-719.24,0.00014973,2]
[337204623,1725499859129,-500.0,0.00014973,2]
[337204624,1725499859140,-500.0,0.00014973,2]
[337204625,1725499859151,-1865.89,0.00014973,2]
[337204626,1725499859164,-500.0,0.00014973,2]
[337204627,1725499859175,-500.0,0.00014973,2]
[337204628,1725499859187,-500.0,0.00014973,2]
[337204629,1725499859198,-1279.21,0.00014973,2]
[337204630,1725499859210,-502.80301567,0.00014973,2]
[337204631,1725499859223,-1003.74,0.00014973,2]
[337204632,1725499859235,-382.15489848,0.00014973,2]
[337204633,1725499859248,-500.0,0.00014973,2]
[337204634,1725499859261,-500.0,0.00014973,2]
[337204635,1725499859273,-754.65,0.00014973,2]
[337204636,1725499859286,-1176.51,0.00014973,2]
[337204637,1725499859299,-642.72597675,0.00014973,2]
[337204638,1725499859312,-151.0,0.00014973,2]
[337204639,1725499859324,-1426.28,0.00014973,2]
[337204640,1725499859336,-500.0,0.00014973,2]
[337204641,1725499859348,-500.0,0.00014973,2]
[337204642,1725499859363,-500.0,0.00014973,2]
[337204643,1725499859376,-500.0,0.00014973,2]
[337204644,1725499859388,-775.12,0.00014973,2]
[337204645,1725499859400,-500.0,0.00014973,2]
[337204646,1725499859412,-500.0,0.00014973,2]
[337204647,1725499859425,-529.0,0.00014973,2]
[337204648,1725499859437,-500.0,0.00014973,2]
[337204649,1725499859449,-500.0,0.00014973,2]
[337204650,1725499859460,-500.0,0.00014973,2]
[337204651,1725499859472,-500.0,0.00014973,2]
[337204652,1725499859484,-500.0,0.00014973,2]
[337204653,1725499859495,-500.0,0.00014973,2]
[337204654,1725499859506,-272.94,0.00014973,2]
[337204655,1725499859518,-789.55,0.00014973,2]
[337204656,1725499859529,-500.0,0.00014973,2]
[337204657,1725499859540,-500.0,0.00014973,2]
[337204658,1725499859552,-775.72,0.00014973,2]
[337204659,1725499859564,-151.0,0.00014973,2]
[337204660,1725499859575,-500.0,0.00014973,2]
[337204661,1725499859587,-151.0,0.00014973,2]
[337204662,1725499859598,-1066.15,0.00014973,2]
[337204663,1725499859609,-151.0,0.00014973,2]
[337204664,1725499859621,-151.0,0.00014973,2]
[337204665,1725499859633,-500.0,0.00014973,2]
[337204666,1725499859645,-869.3,0.00014973,2]
[337204667,1725499859656,-151.0,0.00014973,2]
[337204668,1725499859667,-151.0,0.00014973,2]
[337204669,1725499859679,-153.068408,0.00014973,2]
[337204670,1725499859691,-151.0,0.00014973,2]
[337204671,1725499859704,-151.0,0.00014973,2]
[337204672,1725499859716,-151.0,0.00014973,2]
[337204673,1725499859728,-396.090029,0.00014973,2]
[337204674,1725499859739,-396.090029,0.00014973,2]
[337204675,1725499859750,-542.27,0.00014973,2]
[337204676,1725499859761,-151.0,0.00014973,2]
[337204677,1725499859772,-151.0,0.00014973,2]
[337204678,1725499859783,-151.0,0.00014973,2]
[337204679,1725499859799,-9931.35,0.00014973,2]
[337204680,1725499859810,-500.0,0.00014973,2]
[337204681,1725499859821,-220.437211,0.00014973,2]
[337204682,1725499859832,-333.04,0.00014973,2]
[337204683,1725499859843,-357.382535,0.00014973,2]
[337204684,1725499859854,-357.382535,0.00014973,2]
[337204685,1725499859866,-500.0,0.00014973,2]
[337204686,1725499859878,-500.0,0.00014973,2]
[337204687,1725499859891,-500.0,0.00014973,2]
[337204688,1725499859902,-500.0,0.00014973,2]
[337204689,1725499859914,-500.0,0.00014973,2]
[337204690,1725499859925,-500.0,0.00014973,2]
[337204691,1725499859936,-500.0,0.00014973,2]
[337204692,1725499859948,-2974.77,0.00014973,2]
[337204693,1725499859960,-500.0,0.00014973,2]
[337204694,1725499859971,-500.0,0.00014973,2]
[337204695,1725499859982,-2543.27,0.00014973,2]
[337204696,1725499859994,-3678.48,0.00014973,2]
[337204697,1725499860004,-500.0,0.00014973,2]
[337204698,1725499860016,-506.00856399,0.00014973,2]
[337204699,1725499860027,-500.0,0.00014973,2]
[337204700,1725499860039,-500.0,0.00014973,2]
[337204701,1725499860051,-500.0,0.00014973,2]
[337204702,1725499860063,-1675.32126571,0.00014973,2]
[337204703,1725499860074,-500.0,0.00014974,2]
[337204704,1725499860086,-500.0,0.00014974,2]
[337204705,1725499860097,-500.0,0.00014974,2]
[337204706,1725499860108,-500.0,0.00014974,2]
[337204707,1725499860119,-500.0,0.00014974,2]
[337204708,1725499860130,-500.0,0.00014974,2]
[337204709,1725499860142,-500.0,0.00014974,2]
[337204710,1725499860153,-502.43,0.00014974,2]
[337204711,1725499860164,-566.68,0.00014974,2]
[337204712,1725499860176,-500.0,0.00014974,2]
[337204713,1725499860187,-523.34,0.00014974,2]
[337204714,1725499860199,-500.0,0.00014974,2]
[337204715,1725499860210,-500.0,0.00014974,2]
[337204716,1725499860221,-500.0,0.00014974,2]
[337204717,1725499860232,-500.0,0.00014974,2]
[337204718,1725499860243,-564.0746134,0.00014974,2]
[337204719,1725499860254,-235.86997466,0.00014974,2]
[337204720,1725499860265,-500.0,0.00014974,2]
[337204721,1725499860276,-500.0,0.00014974,2]
[337204722,1725499860287,-500.0,0.00014974,2]
[337204723,1725499860297,-500.0,0.00014974,2]
[337204724,1725499860307,-684.18,0.00014974,2]
[337204725,1725499860318,-500.0,0.00014974,2]
[337204726,1725499860329,-500.0,0.00014974,2]
[337204727,1725499860340,-500.0,0.00014974,2]
[337204728,1725499860351,-689.4,0.00014974,2]
[337204729,1725499860365,-482.45796042,0.00014974,2]
[337204730,1725499860376,-500.0,0.00014974,2]
[337204731,1725499860387,-500.0,0.00014974,2]
[337204732,1725499860406,-500.0,0.00014974,2]
[337204733,1725499860417,-500.0,0.00014974,2]
[337204734,1725499860428,-500.0,0.00014974,2]
[337204735,1725499860440,-500.0,0.00014974,2]
[337204736,1725499860451,-500.0,0.00014974,2]
[337204737,1725499860462,-500.0,0.00014974,2]
[337204738,1725499860474,-500.0,0.00014974,2]
[337204739,1725499860485,-196.48226714,0.00014974,2]
[337204740,1725499860495,-500.0,0.00014974,2]
[337204741,1725499860506,-500.0,0.00014974,2]
[337204742,1725499860517,-500.0,0.00014974,2]
[337204743,1725499860529,-500.0,0.00014974,2]
[337204744,1725499860540,-500.0,0.00014974,2]
[337204745,1725499860551,-500.0,0.00014974,2]
[337204746,1725499860562,-500.0,0.00014974,2]
[337204747,1725499860574,-500.0,0.00014974,2]
[337204748,1725499860584,-500.0,0.00014974,2]
[337204749,1725499860595,-581.16736243,0.00014974,2]
[337204750,1725499860607,-523.43,0.00014974,2]
[337204751,1725499860618,-1063.87,0.00014974,2]
[337204752,1725499860629,-500.0,0.00014974,2]
[337204753,1725499860639,-500.0,0.00014974,2]
[337204754,1725499860650,-748.34,0.00014974,2]
[337204755,1725499860661,-500.0,0.00014974,2]
[337204756,1725499860671,-500.0,0.00014974,2]
[337204757,1725499860683,-680.6,0.00014974,2]
[337204758,1725499860693,-168.06648608,0.00014974,2]
[337204759,1725499860704,-1068.03,0.00014974,2]
[337204760,1725499860715,-1165.14,0.00014974,2]
[337204761,1725499860726,-500.0,0.00014974,2]
[337204762,1725499860737,-500.0,0.00014974,2]
[337204763,1725499860747,-500.0,0.00014974,2]
[337204764,1725499860757,-500.0,0.00014974,2]
[337204765,1725499860769,-626.51,0.00014974,2]
[337204766,1725499860780,-500.0,0.00014974,2]
[337204767,1725499860791,-500.0,0.00014974,2]
[337204768,1725499860802,-500.0,0.00014974,2]
[337204769,1725499860812,-500.0,0.00014974,2]
[337204770,1725499860823,-500.0,0.00014974,2]
[337204771,1725499860833,-738.86,0.00014974,2]
[337204772,1725499860844,-500.0,0.00014974,2]
[337204773,1725499860855,-778.18,0.00014974,2]
[337204774,1725499860866,-504.40262347,0.00014974,2]
[337204775,1725499860877,-500.0,0.00014974,2]
[337204776,1725499860888,-500.0,0.00014974,2]
[337204777,1725499860899,-500.0,0.00014974,2]
[337204778,1725499860910,-500.0,0.00014974,2]
[337204779,1725499860921,-500.0,0.00014974,2]
[337204780,1725499860931,-870.19,0.00014974,2]
[337204781,1725499860942,-1346.71,0.00014974,2]
[337204782,1725499860953,-1038.65,0.00014974,2]
[337204783,1725499860964,-637.85228416,0.00014974,2]
[337204784,1725499860975,-500.0,0.00014974,2]
[337204785,1725499860987,-500.0,0.00014974,2]
[337204786,1725499860998,-500.0,0.00014974,2]
[337204787,1725499861009,-500.0,0.00014974,2]
[337204788,1725499861020,-500.0,0.00014974,2]
[337204789,1725499861031,-543.64,0.00014974,2]
[337204790,1725499861041,-500.0,0.00014974,2]
[337204791,1725499861052,-500.0,0.00014974,2]
[337204792,1725499861063,-1725.32,0.00014974,2]
[337204793,1725499861074,-535.96,0.00014974,2]
[337204794,1725499861086,-1180.11,0.00014974,2]
[337204795,1725499861097,-500.0,0.00014974,2]
[337204796,1725499861107,-500.0,0.00014974,2]
[337204797,1725499861118,-500.0,0.00014974,2]
[337204798,1725499861129,-665.85,0.00014974,2]
[337204799,1725499861140,-1249.95,0.00014974,2]
[337204800,1725499861150,-500.0,0.00014974,2]
[337204801,1725499861161,-500.0,0.00014974,2]
[337204802,1725499861171,-885.56,0.00014974,2]
[337204803,1725499861183,-1243.05,0.00014974,2]
[337204804,1725499861194,-500.0,0.00014974,2]
[337204805,1725499861204,-515.6744385,0.00014974,2]
[337204806,1725499861214,-500.0,0.00014974,2]
[337204807,1725499861225,-500.0,0.00014974,2]
[337204808,1725499861236,-500.0,0.00014974,2]
[337204809,1725499861246,-500.0,0.00014974,2]
[337204810,1725499861257,-500.0,0.00014974,2]
[337204811,1725499861268,-500.0,0.00014974,2]
[337204812,1725499861278,-500.0,0.00014974,2]
[337204813,1725499861289,-500.0,0.00014974,2]
[337204814,1725499861300,-500.0,0.00014974,2]
[337204815,1725499861310,-500.0,0.00014974,2]
[337204816,1725499861321,-691.61,0.00014974,2]
[337204817,1725499861332,-618.57,0.00014974,2]
[337204818,1725499861342,-500.0,0.00014974,2]
[337204819,1725499861353,-500.0,0.00014974,2]
[337204820,1725499861367,-868.1,0.00014974,2]
[337204821,1725499861378,-500.0,0.00014974,2]
[337204822,1725499861389,-698.95,0.00014974,2]
[337204823,1725499861399,-500.0,0.00014974,2]
[337204824,1725499861410,-500.0,0.00014974,2]
[337204825,1725499861420,-500.0,0.00014974,2]
[337204826,1725499861431,-500.0,0.00014974,2]
[337204827,1725499861442,-500.0,0.00014974,2]
[337204828,1725499861453,-500.0,0.00014974,2]
[337204829,1725499861464,-500.0,0.00014974,2]
[337204830,1725499861475,-500.0,0.00014974,2]
[337204831,1725499861485,-500.0,0.00014974,2]
[337204832,1725499861496,-500.0,0.00014974,2]
[337204833,1725499861506,-1279.21,0.00014974,2]
[337204834,1725499861517,-500.0,0.00014974,2]
[337204835,1725499861528,-500.0,0.00014974,2]
[337204836,1725499861539,-754.65,0.00014974,2]
[337204837,1725499861549,-1426.28,0.00014974,2]
[337204838,1725499861560,-500.0,0.00014974,2]
[337204839,1725499861571,-500.0,0.00014974,2]
[337204840,1725499861581,-500.0,0.00014974,2]
[337204841,1725499861592,-519.32948472,0.00014974,2]
[337204842,1725499861603,-500.0,0.00014974,2]
[337204843,1725499861613,-646.45186993,0.00014974,2]
[337204844,1725499861624,-151.0,0.00014974,2]
[337204845,1725499861635,-789.55,0.00014974,2]
[337204846,1725499861647,-500.0,0.00014974,2]
[337204847,1725499861658,-775.72,0.00014974,2]
[337204848,1725499861669,-151.0,0.00014974,2]
[337204849,1725499861680,-151.0,0.00014974,2]
[337204850,1725499861691,-500.0,0.00014974,2]
[337204851,1725499861703,-1066.15,0.00014974,2]
[337204852,1725499861714,-284.02169441,0.00014974,2]
[337204853,1725499861725,-869.3,0.00014974,2]
[337204854,1725499861737,-151.0,0.00014974,2]
[337204855,1725499861748,-151.0,0.00014974,2]
[337204856,1725499861759,-327.711551,0.00014974,2]
[337204857,1725499861770,-327.711551,0.00014974,2]
[337204858,1725499861779,-370.779484,0.00014974,2]
[337204859,1725499861789,-370.779484,0.00014974,2]
[337204860,1725499861798,-151.0,0.00014974,2]
[337204861,1725499861808,-230.73543,0.00014974,2]
[337204862,1725499861817,-151.0,0.00014974,2]
[337204863,1725499862249,-230.73543,0.00014974,2]
[337204864,1725499862265,-196.82166,0.00014974,2]
[337204865,1725499862282,-151.0,0.00014974,2]
[337204866,1725499862292,-151.482979,0.00014974,2]
[337204867,1725499862302,-151.0,0.00014974,2]
[337204868,1725499862311,-151.0,0.00014974,2]
[337204869,1725499862322,-1832.572372,0.00014974,2]
[337204870,1725499862333,-151.0,0.00014974,2]
[337204871,1725499862343,-1832.572372,0.00014974,2]
[337204872,1725499862359,-151.0,0.00014974,2]
[337204873,1725499862371,-346.061427,0.00014974,2]
[337204874,1725499862379,-151.0,0.00014974,2]
[337204875,1725499862389,-255.312436,0.00014974,2]
[337204876,1725499862399,-346.061427,0.00014974,2]
[337204877,1725499862408,-151.0,0.00014974,2]
[337204878,1725499862416,-151.0,0.00014974,2]
[337204879,1725499862426,-212.713621,0.00014974,2]
[337204880,1725499862437,-212.713621,0.00014974,2]
[337204881,1725499862446,-357.864108,0.00014974,2]
[337204882,1725499862456,-231.934886,0.00014974,2]
[337204883,1725499862465,-357.864108,0.00014974,2]
[337204884,1725499862475,-231.934886,0.00014974,2]
[337204885,1725499862487,-151.0,0.00014974,2]
[337204886,1725499862496,-355.451856,0.00014974,2]
[337204887,1725499862506,-355.451856,0.00014974,2]
[337204888,1725499862515,-241.426485,0.00014974,2]
[337204889,1725499862525,-241.426485,0.00014974,2]
[337204890,1725499862535,-318.499121,0.00014974,2]
[337204891,1725499862545,-318.499121,0.00014974,2]
[337204892,1725499862554,-151.0,0.00014974,2]
[337204893,1725499862565,-199.077694,0.00014974,2]
[337204894,1725499862576,-234.534679,0.00014974,2]
[337204895,1725499862584,-199.077694,0.00014974,2]
[337204896,1725499862594,-234.534679,0.00014974,2]
[337204897,1725499862603,-246.38324,0.00014974,2]
[337204898,1725499862612,-151.0,0.00014974,2]
[337204899,1725499862621,-246.38324,0.00014974,2]
[337204900,1725499862630,-151.0,0.00014974,2]
[337204901,1725499862639,-151.0,0.00014974,2]
[337204902,1725499862649,-151.0,0.00014974,2]
[337204903,1725499862658,-236.737176,0.00014974,2]
[337204904,1725499862667,-1165.999936,0.00014974,2]
[337204905,1725499862676,-236.737176,0.00014974,2]
[337204906,1725499862686,-1165.999936,0.00014974,2]
[337204907,1725499862696,-151.0,0.00014974,2]
[337204908,1725499862705,-798.474883,0.00014974,2]
[337204909,1725499862715,-798.474883,0.00014974,2]
[337204910,1725499862724,-699.983479,0.00014974,2]
[337204911,1725499862733,-151.0,0.00014974,2]
[337204912,1725499862742,-1500.0,0.00014979,2]
[337204913,1725499862751,-3000.0,0.0001498,2]
[337204914,1725499862760,-3000.0,0.0001498,2]
[337204915,1725499862769,-3000.0,0.0001498,2]
[337204916,1725499862778,-3000.0,0.0001498,2]
[337204917,1725499862787,-3000.0,0.0001498,2]
[337204918,1725499862796,-1058.88,0.0001498,2]
[337204919,1725499862808,-151.0,0.0001498,2]
[337204920,1725499862821,-224.114508,0.0001498,2]
[337204921,1725499862830,-224.114508,0.0001498,2]
[337204922,1725499862841,-934.659004,0.0001498,2]
[337204923,1725499862851,-934.659004,0.0001498,2]
[337204924,1725499862861,-151.0,0.0001498,2]
[337204925,1725499862873,-151.0,0.0001498,2]
[337204926,1725499862882,-500.0,0.00014981,2]
[337204927,1725499862895,-160.309653,0.00014981,2]
[337204928,1725499862909,-4837.029733,0.00014981,2]
[337204929,1725499862919,-541.372048,0.00014981,2]
[337204930,1725499862928,-516.764228,0.00014981,2]
[337204931,1725499862937,-516.764228,0.00014981,2]
[337204932,1725499862946,-260.457054,0.00014981,2]
[337204933,1725499862956,-756.23,0.00014981,2]
[337204934,1725499862966,-178.955583,0.00014981,2]
[337204935,1725499862975,-622.61131148,0.00014981,2]
[337204936,1725499862984,-1109.48,0.00014981,2]
[337204937,1725499862993,-500.0,0.00014982,2]
[337204938,1725499863002,-500.0,0.00014982,2]
[337204939,1725499863012,-500.0,0.00014982,2]
[337204940,1725499863021,-500.0,0.00014982,2]
[337204941,1725499863031,-500.0,0.00014982,2]
[337204942,1725499863041,-500.0,0.00014982,2]
[337204943,1725499863051,-555.47454366,0.00014982,2]
[337204944,1725499863061,-522.33,0.00014982,2]
[337204945,1725499863071,-500.0,0.00014982,2]
[337204946,1725499863088,-500.0,0.00014982,2]
[337204947,1725499863098,-500.0,0.00014982,2]
[337204948,1725499863108,-591.64,0.00014982,2]
[337204949,1725499863119,-500.0,0.00014982,2]
[337204950,1725499863129,-500.0,0.00014982,2]
[337204951,1725499863139,-500.0,0.00014982,2]
[337204952,1725499863149,-500.0,0.00014982,2]
[337204953,1725499863158,-500.0,0.00014982,2]
[337204954,1725499863168,-431.26,0.00014982,2]
[337204955,1725499863178,-500.0,0.00014982,2]
[337204956,1725499863188,-500.0,0.00014982,2]
[337204957,1725499863198,-432.36605641,0.00014982,2]
[337204958,1725499863207,-500.0,0.00014982,2]
[337204959,1725499863217,-500.0,0.00014982,2]
[337204960,1725499863227,-500.0,0.00014982,2]
[337204961,1725499863237,-1862.57,0.00014982,2]
[337204962,1725499863246,-500.0,0.00014982,2]
[337204963,1725499863256,-500.0,0.00014982,2]
[337204964,1725499863265,-3102.6,0.00014982,2]
[337204965,1725499863275,-500.0,0.00014982,2]
[337204966,1725499863284,-3249.89,0.00014982,2]
[337204967,1725499863294,-1474.41,0.00014982,2]
[337204968,1725499863304,-719.24,0.00014982,2]
[337204969,1725499863314,-500.0,0.00014982,2]
[337204970,1725499863323,-1865.89,0.00014982,2]
[337204971,1725499863333,-500.0,0.00014982,2]
[337204972,1725499863343,-500.0,0.00014982,2]
[337204973,1725499863353,-500.0,0.00014982,2]
[337204974,1725499863366,-1003.74,0.00014982,2]
[337204975,1725499863376,-500.0,0.00014982,2]
[337204976,1725499863385,-1176.51,0.00014982,2]
[337204977,1725499863395,-1198.38,0.00014982,2]
[337204978,1725499863405,-500.0,0.00014982,2]
[337204979,1725499863414,-705.71,0.00014982,2]
[337204980,1725499863424,-645.46,0.00014982,2]
[337204981,1725499863434,-2593.36,0.00014982,2]
[337204982,1725499863444,-5343.63,0.00014982,2]
[337204983,1725499863454,-1300.35,0.00014982,2]
[337204984,1725499863464,-2892.13,0.00014982,2]
[337204985,1725499863474,-500.0,0.00014982,2]
[337204986,1725499863483,-2965.78,0.00014982,2]
[337204987,1725499863493,-775.12,0.00014982,2]
[337204988,1725499863503,-5288.71,0.00014982,2]
[337204989,1725499863513,-2018.99,0.00014982,2]
[337204990,1725499863522,-500.0,0.00014982,2]
[337204991,1725499863532,-500.0,0.00014982,2]
[337204992,1725499863542,-529.0,0.00014982,2]
[337204993,1725499863552,-500.0,0.00014982,2]
[337204994,1725499863561,-500.0,0.00014982,2]
[337204995,1725499863571,-647.67927393,0.00014982,2]
[337204996,1725499863580,-500.0,0.00014982,2]
[337204997,1725499863590,-500.0,0.00014982,2]
[337204998,1725499863599,-1544.76,0.00014982,2]
[337204999,1725499863609,-962.78,0.00014982,2]
[337205000,1725499863619,-1872.09,0.00014982,2]
[337205001,1725499863628,-1714.32,0.00014982,2]
[337205002,1725499863638,-500.0,0.00014982,2]
[337205003,1725499863649,-500.0,0.00014982,2]
[337205004,1725499863658,-255.52276057,0.00014982,2]
[337205005,1725499863668,-500.0,0.00014982,2]
[337205006,1725499863677,-500.0,0.00014982,2]
[337205007,1725499863687,-500.0,0.00014982,2]
[337205008,1725499863698,-583.37,0.00014982,2]
[337205009,1725499863708,-500.0,0.00014982,2]
[337205010,1725499863718,-433.97144066,0.00014982,2]
[337205011,1725499863728,-542.27,0.00014982,2]
[337205012,1725499863737,-3102.77,0.00014982,2]
[337205013,1725499863747,-9931.35,0.00014982,2]
[337205014,1725499863757,-500.0,0.00014982,2]
[337205015,1725499863767,-500.0,0.00014982,2]
[337205016,1725499863776,-500.0,0.00014982,2]
[337205017,1725499863785,-151.0,0.00014982,2]
[337205018,1725499863795,-151.0,0.00014982,2]
[337205019,1725499863804,-500.0,0.00014982,2]
[337205020,1725499863814,-500.0,0.00014982,2]
[337205021,1725499863824,-838.18,0.00014982,2]
[337205022,1725499863833,-500.0,0.00014982,2]
[337205023,1725499863843,-151.0,0.00014982,2]
[337205024,1725499863853,-500.0,0.00014982,2]
[337205025,1725499863862,-151.0,0.00014982,2]
[337205026,1725499863873,-151.0,0.00014982,2]
[337205027,1725499863882,-961.501084,0.00014982,2]
[337205028,1725499863893,-961.501084,0.00014982,2]
[337205029,1725499863902,-324.549997,0.00014982,2]
[337205030,1725499863912,-851.81,0.00014982,2]
[337205031,1725499863922,-851.81,0.00014982,2]
[337205032,1725499863931,-1287.92,0.00014982,2]
[337205033,1725499863941,-492.12958721,0.00014982,2]
[337205034,1725499863950,-324.549997,0.00014982,2]
[337205035,1725499863960,-171.763337,0.00014982,2]
[337205036,1725499863970,-151.0,0.00014982,2]
[337205037,1725499863979,-500.0,0.00014982,2]
[337205038,1725499863989,-500.0,0.00014982,2]
[337205039,1725499863999,-500.0,0.00014982,2]
[337205040,1725499864008,-171.763337,0.00014982,2]
[337205041,1725499864018,-500.0,0.00014982,2]
[337205042,1725499864028,-500.0,0.00014982,2]
[337205043,1725499864038,-500.0,0.00014982,2]
[337205044,1725499864048,-500.0,0.00014982,2]
[337205045,1725499864058,-500.0,0.00014982,2]
[337205046,1725499864067,-500.0,0.00014982,2]
[337205047,1725499864077,-1915.76,0.00014982,2]
[337205048,1725499864087,-1915.76,0.00014982,2]
[337205049,1725499864096,-2974.77,0.00014982,2]
[337205050,1725499864106,-151.0,0.00014982,2]
[337205051,1725499864115,-1003.28,0.00014982,2]
[337205052,1725499864125,-203.367203,0.00014982,2]
[337205053,1725499864135,-2944.76,0.00014982,2]
[337205054,1725499864145,-2944.76,0.00014982,2]
[337205055,1725499864154,-151.0,0.00014982,2]
[337205056,1725499864164,-203.367203,0.00014982,2]
[337205057,1725499864174,-500.0,0.00014982,2]
[337205058,1725499864185,-500.0,0.00014982,2]
[337205059,1725499864194,-151.0,0.00014982,2]
[337205060,1725499864205,-162.853998,0.00014982,2]
[337205061,1725499864216,-162.853998,0.00014982,2]
[337205062,1725499864226,-1491.94,0.00014982,2]
[337205063,1725499864236,-1491.94,0.00014982,2]
[337205064,1725499864246,-663.021085,0.00014982,2]
[337205065,1725499864256,-151.0,0.00014982,2]
[337205066,1725499864266,-663.021085,0.00014982,2]
[337205067,1725499864276,-500.0,0.00014982,2]
[337205068,1725499864286,-500.0,0.00014982,2]
[337205069,1725499864296,-1400.06,0.00014982,2]
[337205070,1725499864306,-500.0,0.00014982,2]
[337205071,1725499864316,-1400.06,0.00014982,2]
[337205072,1725499864326,-151.0,0.00014982,2]
[337205073,1725499864335,-500.0,0.00014982,2]
[337205074,1725499864345,-500.0,0.00014982,2]
[337205075,1725499864360,-500.0,0.00014982,2]
[337205076,1725499864372,-500.0,0.00014982,2]
[337205077,1725499864383,-619.19937087,0.00014982,2]
[337205078,1725499864395,-500.0,0.00014982,2]
[337205079,1725499864405,-500.0,0.00014982,2]
[337205080,1725499864415,-500.0,0.00014982,2]
[337205081,1725499864425,-500.0,0.00014982,2]
[337205082,1725499864435,-500.0,0.00014982,2]
[337205083,1725499864445,-500.0,0.00014982,2]
[337205084,1725499864455,-1095.43,0.00014982,2]
[337205085,1725499864465,-1095.43,0.00014982,2]
[337205086,1725499864475,-500.0,0.00014982,2]
[337205087,1725499864485,-500.0,0.00014982,2]
[337205088,1725499864495,-1344.35,0.00014982,2]
[337205089,1725499864504,-1344.35,0.00014982,2]
[337205090,1725499864514,-879.59,0.00014982,2]
[337205091,1725499864523,-879.59,0.00014982,2]
[337205092,1725499864534,-1331.6,0.00014982,2]
[337205093,1725499864544,-1331.6,0.00014982,2]
[337205094,1725499864554,-500.0,0.00014982,2]
[337205095,1725499864564,-500.0,0.00014982,2]
[337205096,1725499864574,-500.0,0.00014982,2]
[337205097,1725499864584,-500.0,0.00014982,2]
[337205098,1725499864594,-760.89,0.00014982,2]
[337205099,1725499864604,-760.89,0.00014982,2]
[337205100,1725499864614,-500.0,0.00014982,2]
[337205101,1725499864625,-520.03771045,0.00014982,2]
[337205102,1725499864635,-500.0,0.00014982,2]
[337205103,1725499864647,-500.0,0.00014982,2]
[337205104,1725499864657,-500.0,0.00014982,2]
[337205105,1725499864668,-500.0,0.00014982,2]
[337205106,1725499864677,-500.0,0.00014982,2]
[337205107,1725499864688,-500.0,0.00014982,2]
[337205108,1725499864697,-462.4934071,0.00014982,2]
[337205109,1725499864707,-2543.27,0.00014982,2]
[337205110,1725499864717,-3678.48,0.00014982,2]
[337205111,1725499864727,-160.309653,0.00014982,2]
[337205112,1725499864737,-2261.89,0.00014982,2]
[337205113,1725499864747,-2261.89,0.00014982,2]
[337205114,1725499864756,-543.44,0.00014982,2]
[337205115,1725499864766,-500.0,0.00014982,2]